[Event "Kezmarok Chess Open 2022"]
[Site "Kezmarok"]
[Date "2022.09.29"]
[Round "7.7"]
[White "Elias, David"]
[Black "Demeter, Peter"]
[Result "0-1"]
[ECO "E92"]
[WhiteElo "1988"]
[BlackElo "2067"]
[Annotator "TA"]
[PlyCount "132"]
[EventDate "2022.09.24"]
[EventType "swiss"]
[EventCountry "SVK"]
[SourceTitle "playchess.com"]
[Source "ChessBase"]
[SourceQuality "1"]
[TimeControl "40/5400+30:1800+30"]

{[%evp 25,132,0,49,31,37,27,111,102,129,89,90,93,76,77,68,73,108,93,106,105,88,85,99,79,131,116,105,0,0,0,0,0,308,306,297,298,306,297,293,291,256,21,14,12,21,-2,0,5,29,20,87,0,0,-45,-8,-8,-14,-11,-16,-375,-344,-29955,-29961,-29950,-29956,-12801,-12795,-29987,-29988,-29990,-29987,-29986,-4952,-29986,-29987,-29988,-29985,-29986,-29984,-29984,-29985,-29988,-29986,-29990,-29988,-29989,-29990,-29991,-29988,-29991,-29988,-29988,-29987,-29989,-29990,-29990,-29991,-29991,-29992,-29992,-29987,-29992,-29992,-29996,-29997,-29997,-29998,-29998,-29999]} 1. Nf3 {[%emt 0:00:24]} Nf6 {[%emt 0:00:19]} 2. c4 {[%emt 0:00:25]} g6 {[%emt 0:00:08]} 3. Nc3 {[%emt 0:00:15]} Bg7 {[%emt 0:00:04]} 4. e4 {[%emt 0:00:24]} d6 {[%emt 0:00:07]} 5. Be2 {[%emt 0:00:49]} O-O {[%emt 0:00:13]} 6. d4 {[%emt 0:00:42]} e5 {[%emt 0:00:10]} 7. d5 {[%emt 0:00:49]} a5 {[%emt 0:00:25]} 8. Bg5 {[%emt 0:00:45]} h6 {[%emt 0:00:16]} 9. Bh4 {[%emt 0:01:16]} Na6 {[%emt 0:01:22]} 10. Nd2 {[%emt 0:00:35]} Nc5 {[%emt 0:01:35]} 11. b3 {[%emt 0:01:09]} Bd7 {[%emt 0:05:05]} 12. O-O {[%emt 0:00:32]} Qe8 {[%emt 0:01:28]} 13. a3 {[%emt 0:01:17]} Nh7 {[%emt 0:26:45]} (13... Ncxe4 $11 14. Ndxe4 (14. Ncxe4 Nxe4 15. Nxe4 f5 $11) 14... Nxe4 15. Nxe4 f5) 14. Nb5 {[%emt 0:09:56] E92: King's Indian: Classical: 6 Be2 e5: 7 dxe5, 7 Be3 and Petrosian System without 7...Nbd7.} Bxb5 {[%emt 0:03:44]} 15. cxb5 {[%emt 0:00:01] [#]} b6 $146 {[%emt 0:00:33]} (15... Bf6 $11 {remains equal.} 16. Bxf6 Nxf6) ({Predecessor:} 15... Nxe4 16. Nxe4 f5 17. Rc1 Qd7 18. Nd2 g5 19. Bg3 f4 20. Bg4 Qxb5 21. Be6+ Kh8 22. Rxc7 fxg3 23. hxg3 {½-½ (79) Konings,L (2318)-Roebers,J (2250) Amsterdam 2002}) 16. Qc2 $16 {[%emt 0:01:42] White is better.} Qd7 {[%emt 0:06:43]} 17. b4 {[%emt 0:05:27]} Nxe4 {[%emt 0:05:17]} 18. Nxe4 {[%emt 0:08:00] Hoping for bxa5.} g5 {[%emt 0:01:47] [#]} 19. Rac1 $1 {[%emt 0:09:04][%cal Ob4a5]} axb4 {[%emt 0:02:36]} (19... f5 20. Bxg5) 20. axb4 {[%emt 0:01:49]} Ra7 {[%emt 0:00:13]} 21. Bg3 {[%emt 0:08:37] Strongly threatening f3.} f5 {[%emt 0:00:18]} 22. Nc3 {[%emt 0:00:32] Black must now prevent f3.} f4 {[%emt 0:01:51]} 23. Bd3 {[%emt 0:01:12][%cal Be2d3,Bd3f5,Bf5e6][%mdl 32]} Nf6 {[%emt 0:02:19]} 24. Bf5 {[%emt 0:00:53] Inhibits e4.} Qe7 {[%emt 0:00:29]} (24... Qe8 $142) 25. Be6+ {[%emt 0:00:31]} Kh8 {[%emt 0:00:07]} 26. h4 {[%emt 0:01:07]} (26. Ra1 $16 Rfa8 27. Rxa7 Rxa7 28. Ne4 Nxe4 29. Qxe4) 26... fxg3 $11 {[%emt 0:00:07]} 27. hxg5 {[%emt 0:00:50]} Nh5 {[%emt 0:01:32]} 28. Ne4 {[%emt 0:10:29]} Nf4 $2 {[%emt 0:05:47][%mdl 8192]} (28... gxf2+ $11 29. Rxf2 Rxf2 30. Kxf2 Nf4) 29. fxg3 $18 {[%emt 0:02:06]} Nxe6 {[%emt 0:03:49]} 30. dxe6 {[%emt 0:00:06]} Qxe6 {[%emt 0:04:14]} 31. Rxf8+ {[%emt 0:01:03]} Bxf8 {[%emt 0:00:15]} 32. Nf6 {[%emt 0:02:38][%csl Gf6][%cal Rc2h7]} e4 {[%emt 0:00:28]} (32... Qf7 33. Rf1 Ra2 34. Qe4 hxg5 35. Qg4 $18) 33. Qxe4 $2 {[%emt 0:10:52]} ({Only move:} 33. Rf1 $1 $18) 33... Qxe4 $11 {[%emt 0:00:07]} 34. Nxe4 {[%emt 0:00:03]} hxg5 $18 {[%emt 0:02:44][%mdl 4096] Endgame KRB-KRN} 35. Nf6 {[%emt 0:00:57]} (35. Nxg5 $5 {[%cal Rg5e6]} Bh6 36. Nf7+ Kg7 37. Nxh6 Kxh6 38. Kf2 $14) 35... Bg7 {[%emt 0:02:57]} 36. Nd5 {[%emt 0:01:01]} Bd4+ {[%emt 0:00:36]} 37. Kf1 {[%emt 0:02:42]} Kg7 {[%emt 0:01:59] [#]} (37... Ra2 $11 {keeps the balance.}) 38. Nxc7 {[%emt 0:02:08]} (38. Ke2 $1 $16) 38... Kf6 $11 {[%emt 0:00:27]} 39. Ke2 {[%emt 0:01:09]} Ra3 {[%emt 0:02:30][%mdl 1024] Black has compensation.} (39... Ke5 $5 {[%cal Re5e4]}) 40. Rc6 {[%emt 0:04:45]} Ke5 {[%emt 0:01:07]} 41. Ne8 $1 {[%emt 0:31:53]} d5 {[%emt 0:38:24]} 42. Ng7 $2 {[%emt 0:00:00][%mdl 8192] [#]} (42. Nf6 $11 {and White stays safe.}) 42... Ke4 $1 $19 {[%emt 0:00:00] ( -> ...Ra2+)} 43. Ne6 $2 {[%emt 0:00:00]} (43. Re6+ $19 Be5 44. Ne8) 43... Ra2+ {[%emt 0:00:00]} 44. Kf1 {[%emt 0:00:00]} Be3 {[%emt 0:00:00]} 45. Nxg5+ {[%emt 0:00:00]} Bxg5 {[%emt 0:00:00]} 46. Rxb6 {[%emt 0:00:00] KRB-KR} Be3 {[%emt 0:00:00]} 47. Ra6 {[%emt 0:00:00]} Rb2 {[%emt 0:00:00]} 48. g4 {[%emt 0:00:00]} Rxb4 {[%emt 0:00:00]} (48... d4 $142 49. Re6+ Kd3 50. g3 Rf2+ 51. Kg1 Rf6+ 52. Kg2 Rxe6 53. b6 Rxb6 54. Kf3 Bg5 55. Kf2 Rf6+ 56. Kg1 Ke2 57. Kg2 Rf2+ 58. Kh1 d3 59. Kg1 d2 60. Kh1 d1=Q#) 49. Ke2 {[%emt 0:00:00]} Rb2+ {[%emt 0:00:00] Black mates.} 50. Ke1 {[%emt 0:00:00]} Rxb5 {[%emt 0:00:00]} 51. g5 {[%emt 0:00:00]} Rb1+ {[%emt 0:00:00]} 52. Ke2 {[%emt 0:00:08]} Rb2+ {[%emt 0:00:00]} 53. Ke1 {[%emt 0:00:43]} Bxg5 {[%emt 0:00:00]} 54. g4 {[%emt 0:00:51]} Kf3 {[%emt 0:00:00][%cal Rb2b1]} 55. Kd1 {[%emt 0:00:11]} Rd2+ {[%emt 0:00:00]} 56. Ke1 {[%emt 0:00:21]} Rg2 {[%emt 0:00:00][%cal Rg2g1]} 57. Kf1 {[%emt 0:00:46]} Rxg4 {[%emt 0:00:00]} 58. Ra2 {[%emt 0:01:41]} Ke4 {[%emt 0:00:00]} 59. Ra4+ {[%emt 0:01:28]} d4 {[%emt 0:00:00]} 60. Ke2 {[%emt 0:00:14]} Rg2+ {[%emt 0:00:00]} 61. Kd1 {[%emt 0:01:15]} Be3 {[%emt 0:00:00]} 62. Rb4 {[%emt 0:00:47]} Rd2+ {[%emt 0:00:00]} 63. Ke1 {[%emt 0:01:17]} Ra2 {[%emt 0:00:00]} 64. Rb1 {[%emt 0:01:15]} Kf3 {[%emt 0:00:00]} 65. Kd1 {[%emt 0:01:19]} d3 {[%emt 0:00:00]} 66. Ke1 {[%emt 0:00:11]} Rh2 {[%emt 0:00:00] Quite a comeback for Black.  Weighted Error Value: White=0.54/Black=0.32} 0-1

[Event "Kezmarok Chess Open 2022"]
[Site "Kezmarok"]
[Date "2022.09.29"]
[Round "7.8"]
[White "Sosovickova, Jana"]
[Black "Smetana, Peter"]
[Result "1/2-1/2"]
[ECO "B32"]
[WhiteElo "2039"]
[BlackElo "1715"]
[Annotator "TA"]
[PlyCount "63"]
[EventDate "2022.09.24"]
[EventType "swiss"]
[EventCountry "SVK"]
[SourceTitle "playchess.com"]
[Source "ChessBase"]
[SourceQuality "1"]
[TimeControl "40/5400+30:1800+30"]

{[%evp 10,63,27,25,29,21,31,36,29,23,14,8,23,25,29,26,30,30,28,0,51,52,56,57,66,42,49,38,49,46,46,40,56,0,18,0,8,14,28,-88,94,27,91,82,82,82,82,82,90,68,80,0,89,0,85,0]} 1. e4 {[%emt 0:00:03]} c5 {[%emt 0:00:18]} 2. Nf3 {[%emt 0:00:03][%cal Bg1f3,Bf3d4,Bd4b5,Bb5a3,Ba3c2][%mdl 32]} Nc6 {[%emt 0:01:14]} 3. d4 {[%emt 0:00:10]} cxd4 {[%emt 0:00:14]} 4. Nxd4 {[%emt 0:00:05]} e5 {[%emt 0:00:24]} 5. Nb5 {[%emt 0:00:23]} d6 {[%emt 0:00:25]} 6. c4 {[%emt 0:00:54]} g6 {[%emt 0:01:45] 6...Be6 is the modern continuation. B32: Sicilian: Löwenthal and Kalashnikov Variations.} 7. N1c3 {[%emt 0:02:10]} a6 {[%emt 0:00:35]} 8. Na3 {[%emt 0:00:45]} Bg7 {[%emt 0:00:50] White is slightly better.} 9. Nc2 {[%emt 0:03:22]} Be6 {[%emt 0:00:54]} 10. Be2 {[%emt 0:06:45]} Nf6 {[%emt 0:01:09]} 11. O-O {[%emt 0:00:31]} O-O {[%emt 0:00:53]} 12. Bg5 {[%emt 0:03:57]} Rc8 {[%emt 0:02:21]} 13. Nd5 {[%emt 0:06:54]} Bxd5 {[%emt 0:11:24] [#]} 14. exd5 $146 {[%emt 0:02:08]} (14. cxd5 Nd4 15. Nxd4 exd4 16. Bd3 Qb6 17. Bxf6 Bxf6 18. Qd2 Rc7 19. f4 Re8 20. g3) ({Predecessor:} 14. cxd5 Nd4 15. Nxd4 exd4 16. Bd3 Qb6 17. Bxf6 Bxf6 18. Qd2 Rc7 19. f4 Re8 20. g3 {½-½ (46) Ivanov,O (2444)-Lintchevski,D (2556) Moscow 2022}) 14... Nd4 {[%emt 0:06:58]} ({Better is} 14... Ne7 $11) 15. Nxd4 $14 {[%emt 0:04:35]} exd4 {[%emt 0:00:30]} 16. Qxd4 {[%emt 0:03:52]} Re8 {[%emt 0:01:57]} 17. Rfe1 {[%emt 0:14:46] White is more active.} h6 $1 {[%emt 0:23:17]} 18. Be3 {[%emt 0:05:36]} Ne4 {[%emt 0:01:16]} 19. Qd3 {[%emt 0:01:47]} Bxb2 {[%emt 0:05:24]} 20. Rab1 {[%emt 0:00:42]} Qa5 {[%emt 0:05:13]} 21. Qb3 {[%emt 0:07:17]} (21. Bxh6 $14 Nc5 22. Qc2) 21... Bc3 {[%emt 0:02:51]} 22. Bb6 {[%emt 0:13:10]} Bxe1 {[%emt 0:01:57]} 23. Bxa5 {[%emt 0:00:04]} Bxa5 {[%emt 0:00:25]} 24. Qd3 {[%emt 0:02:28]} (24. Rc1 $11) 24... Nc5 $2 {[%emt 0:02:47] [#]} (24... b5 $17 {stays on course. Threatens to win with ...Nc3.} 25. Qa3 (25. cxb5 $2 Nc3 $19) 25... Nc3) 25. Qf3 {[%emt 0:07:08]} (25. Qa3 $16 {Strongly threatening Bg4.} Bd8 26. Bf3) 25... Re5 {[%emt 0:01:15]} (25... b5 $1 $11) 26. g3 {[%emt 0:01:52]} Rce8 {[%emt 0:02:22]} 27. Bd3 {[%emt 0:02:30][%cal Od3g6]} Kg7 {[%emt 0:06:13]} 28. Kg2 {[%emt 0:00:40]} Bc7 {[%emt 0:02:13]} 29. Rb2 {[%emt 0:03:31]} Ba5 {[%emt 0:01:09]} 30. Rb1 {[%emt 0:00:33]} Bc7 $1 {[%emt 0:03:43]} 31. Rb2 {[%emt 0:00:03]} (31. Bf1) 31... Ba5 $1 {[%emt 0:00:23]} 32. Rb1 {[%emt 0:00:03] Weighted Error Value: White=0.28 (precise) /Black=0.18 (very precise)} (32. Qd1 $16) 1/2-1/2

[Event "Kezmarok Chess Open 2022"]
[Site "Kezmarok"]
[Date "2022.09.29"]
[Round "7.9"]
[White "Bochnickova, Simona"]
[Black "Velychko, Semen"]
[Result "1/2-1/2"]
[ECO "B32"]
[WhiteElo "1903"]
[BlackElo "1604"]
[Annotator "TA"]
[PlyCount "65"]
[EventDate "2022.09.24"]
[EventType "swiss"]
[EventCountry "SVK"]
[SourceTitle "playchess.com"]
[Source "ChessBase"]
[SourceQuality "1"]
[TimeControl "40/5400+30:1800+30"]

{[%evp 11,65,18,25,25,66,67,51,51,59,58,68,58,61,43,54,3,10,6,59,56,94,36,33,5,13,8,33,31,33,45,67,53,90,77,157,80,263,33,29,27,41,8,15,0,0,-62,-60,-80,-78,-77,0,0,0,-79,0,0]} 1. e4 {[%emt 0:00:02]} c5 {[%emt 0:00:09]} 2. Nf3 {[%emt 0:00:33][%cal Bg1f3,Bf3d4,Bd4b5,Bb5c3,Bc3d5][%mdl 32]} Nc6 {[%emt 0:00:09]} 3. d4 {[%emt 0:00:05]} cxd4 {[%emt 0:00:34]} 4. Nxd4 {[%emt 0:00:07]} e5 {[%emt 0:00:11]} 5. Nb5 {[%emt 0:00:08]} d6 {[%emt 0:00:56]} 6. c4 {[%emt 0:00:54]} Be7 {[%emt 0:01:00] 6...Be6 injects fresh life into this line.} 7. N5c3 {[%emt 0:01:37] B32: Sicilian: Löwenthal and Kalashnikov Variations.} f5 {[%emt 0:08:15]} 8. exf5 {[%emt 0:00:08]} Bxf5 {[%emt 0:00:29]} 9. Bd3 {[%emt 0:01:39] White is slightly better.} Be6 {[%emt 0:00:42]} 10. Nd5 {[%emt 0:03:23]} Nf6 {[%emt 0:02:13]} 11. Nbc3 {[%emt 0:02:55]} O-O {[%emt 0:01:56]} 12. O-O {[%emt 0:03:55] White has more active pieces.} Rc8 {[%emt 0:07:51] [#]} 13. f4 $146 {[%emt 0:08:40]} (13. Be3 $14) ({Predecessor:} 13. Be3 Nd4 14. Re1 Nxd5 15. Nxd5 Bxd5 16. cxd5 Bg5 17. Qh5 h6 18. Bxd4 exd4 19. Qg6 Qf6 20. Qh7+ Kf7 21. Re6 {1-0 (21) Perez Ponsa,F (2554)-Rodriguez,S (2252) Chess.com INT 2021}) 13... Nb4 $11 {[%emt 0:23:17][%cal Rf6d5]} 14. Be3 {[%emt 0:08:00]} Nxd3 {[%emt 0:04:33]} (14... Bxd5 $11 15. cxd5 Nxd3 16. Qxd3 a6) 15. Qxd3 $14 {[%emt 0:00:10]} Ng4 {[%emt 0:06:58]} 16. Bxa7 {[%emt 0:04:20]} (16. b3 $16) 16... exf4 $1 {[%emt 0:03:59]} 17. Rxf4 {[%emt 0:13:28]} (17. Qe4 $5 {[%cal Re4e6]} Ne5 18. Rxf4 $14) 17... Rxf4 {[%emt 0:01:05][%mdl 64] Remove Defender} 18. Nxf4 {[%emt 0:00:06] Pair of Knights!} Bxc4 {[%emt 0:01:17]} (18... Qa5 $5 {[%cal Ra5a7]} 19. Bd4 (19. Nxe6 Qxa7+ 20. Nd4 Bf6 $11) 19... Bxc4 $14) 19. Qf5 {[%emt 0:03:08]} Nh6 {[%emt 0:05:44]} 20. Qe4 {[%emt 0:03:20]} Qd7 {[%emt 0:08:25]} 21. Nfd5 $1 {[%emt 0:05:33]} Bxd5 {[%emt 0:01:40]} 22. Nxd5 {[%emt 0:00:22]} Bf6 {[%emt 0:02:37]} (22... Bf8 $142) 23. Re1 {[%emt 0:07:51]} (23. Nxf6+ $142 gxf6 24. Rf1) 23... Qf5 $2 {[%emt 0:01:59]} (23... Rf8 $16 {was called for.}) 24. Ne7+ $2 {[%emt 0:03:38]} ({Only move:} 24. Nxf6+ $18 Qxf6 25. Qxb7 (25. Rf1 Qd8 $16)) 24... Bxe7 {[%emt 0:00:11]} 25. Qxe7 {[%emt 0:00:05]} Qd5 {[%emt 0:02:08]} 26. Rf1 {[%emt 0:05:46]} Nf7 {[%emt 0:01:43]} 27. a4 {[%emt 0:05:05]} h6 {[%emt 0:05:56]} 28. a5 {[%emt 0:00:23]} ({White should play} 28. h3 $11) 28... Rc2 $15 {[%emt 0:01:14][%csl Gc2][%cal Rd5g2]} 29. Rf2 {[%emt 0:05:20]} Rc1+ {[%emt 0:01:11]} 30. Rf1 {[%emt 0:00:07] [#]} Rc2 {[%emt 0:00:36]} ({Don't play} 30... Rxf1+ $6 31. Kxf1 Qc6 32. h3 $11) (30... Qc4 $1 $17 {[%csl Gc4][%cal Rc1f1]} 31. Rxc1 (31. Re1 $2 Ne5 $19) 31... Qxc1+ 32. Kf2 Qxb2+ 33. Kg3 Qc3+ 34. Qe3 Qe5+ 35. Qxe5 Nxe5) 31. Rf2 $11 {[%emt 0:00:10]} Rc1+ {[%emt 0:00:27]} (31... Rxf2 $11 32. Bxf2 Qxa5) 32. Rf1 $17 {[%emt 0:00:09] [#] Dancing on a razor blade.} Rc2 {[%emt 0:00:08]} ({But not} 32... Rxf1+ $6 33. Kxf1 Ng5 34. h3 $11) (32... Qc4 $1 $17 {[%csl Gc4][%cal Rc1f1]} 33. Rxc1 (33. Re1 $2 Ne5 $19) 33... Qxc1+ 34. Kf2 Qxb2+ 35. Kg3 Qc3+ 36. Qe3 Qxe3+ 37. Bxe3 Ne5) 33. Rf2 {[%emt 0:00:42] Weighted Error Value: White=0.30/Black=0.27 (precise)} 1/2-1/2

[Event "Kezmarok Chess Open 2022"]
[Site "Kezmarok"]
[Date "2022.09.29"]
[Round "7.10"]
[White "Rak, Martin"]
[Black "Juracak, David"]
[Result "1/2-1/2"]
[ECO "C42"]
[WhiteElo "1805"]
[BlackElo "1708"]
[Annotator "NA RC COMBH"]
[PlyCount "47"]
[EventDate "2022.09.24"]
[EventType "swiss"]
[EventCountry "SVK"]
[SourceTitle "playchess.com"]
[Source "ChessBase"]
[SourceQuality "1"]
[TimeControl "40/5400+30:1800+30"]

1. e4 {[%emt 0:00:11]} e5 {[%emt 0:00:07]} 2. Nf3 {[%emt 0:00:04]} Nf6 {[%emt 0:00:08]} 3. Nc3 {[%emt 0:00:02]} Bb4 {[%emt 0:00:11]} 4. Nxe5 {[%emt 0:00:15]} O-O {[%emt 0:00:08]} 5. Nd3 {[%emt 0:00:05]} Bxc3 {[%emt 0:00:19]} 6. dxc3 {[%emt 0:00:09]} Nxe4 {[%emt 0:00:05]} 7. Be2 {[%emt 0:00:05]} d6 {[%emt 0:00:12]} 8. O-O {[%emt 0:00:12]} Nd7 {[%emt 0:09:09]} 9. Re1 {[%emt 0:02:22]} Re8 {[%emt 0:02:46]} 10. f3 {[%emt 0:08:04]} Nec5 {[%emt 0:02:36]} 11. Bf4 {[%emt 0:01:47]} Nxd3 {[%emt 0:12:57]} 12. cxd3 {[%emt 0:02:15]} Nb6 {[%emt 0:00:26]} 13. Qd2 {[%emt 0:06:10]} Qf6 {[%emt 0:03:31]} 14. d4 {[%emt 0:05:34]} Be6 {[%emt 0:03:17]} 15. b3 {[%emt 0:12:15]} Nd5 {[%emt 0:00:32]} 16. Bg5 {[%emt 0:02:10]} Qg6 {[%emt 0:01:05]} 17. Bh4 {[%emt 0:14:27]} Ne7 {[%emt 0:20:23]} 18. Bd3 {[%emt 0:10:32]} Bf5 {[%emt 0:00:17]} 19. Bxe7 {[%emt 0:01:24]} Bxd3 {[%emt 0:00:16]} 20. Bh4 {[%emt 0:00:43]} Bf5 {[%emt 0:00:48]} 21. Rxe8+ {[%emt 0:01:20]} Rxe8 {[%emt 0:00:17]} 22. Re1 {[%emt 0:00:13]} Rxe1+ {[%emt 0:00:22]} 23. Qxe1 {[%emt 0:00:52]} Qe6 {[%emt 0:00:05]} 24. Qxe6 {[%emt 0:00:17]} 1/2-1/2

[Event "Kezmarok Chess Open 2022"]
[Site "Kezmarok"]
[Date "2022.09.29"]
[Round "7.11"]
[White "Ropovik, Samuel"]
[Black "Sekova, Olivia"]
[Result "1/2-1/2"]
[ECO "B40"]
[WhiteElo "1497"]
[BlackElo "1797"]
[Annotator "NA RC COMBH"]
[PlyCount "83"]
[EventDate "2022.09.24"]
[EventType "swiss"]
[EventCountry "SVK"]
[SourceTitle "playchess.com"]
[Source "ChessBase"]
[SourceQuality "1"]
[TimeControl "40/5400+30:1800+30"]

1. e4 c5 2. Nf3 e6 3. d4 cxd4 4. Nxd4 Nf6 5. Nc3 Nc6 6. Bf4 Bb4 7. Ndb5 Nxe4 8. Qf3 d5 9. Nc7+ Kf8 10. Nxa8 e5 11. Bd2 Nd4 12. Qd1 Qh4 13. g3 Qf6 14. Nxe4 Nf3+ 15. Qxf3 Qxf3 16. Bxb4+ Kg8 17. Nd6 Qxh1 18. O-O-O Be6 19. Nc7 Qxh2 20. Nxd5 Bxd5 21. Rxd5 Qxf2 22. Rxe5 Qxf1+ 23. Re1 Qxe1+ 24. Bxe1 h5 25. Nxb7 g5 26. Bf2 h4 27. gxh4 gxh4 28. Bxa7 h3 29. Bb8 h2 30. Bxh2 Rxh2 31. a4 f5 32. a5 f4 33. a6 f3 34. a7 Rh1+ 35. Kd2 Ra1 36. Ke3 Rxa7 37. Nd6 Ra2 38. Nc4 Ra4 39. Nd2 Ra2 40. Nc4 Ra4 41. Nd2 Ra2 42. Nc4 1/2-1/2

[Event "Kezmarok Chess Open 2022"]
[Site "Kezmarok"]
[Date "2022.09.29"]
[Round "7.12"]
[White "Rakovsky, Jakub"]
[Black "Vestur, Rastislav"]
[Result "1-0"]
[ECO "B41"]
[WhiteElo "2012"]
[BlackElo "1789"]
[Annotator "TA"]
[PlyCount "63"]
[EventDate "2022.09.24"]
[EventType "swiss"]
[EventCountry "SVK"]
[SourceTitle "playchess.com"]
[Source "ChessBase"]
[SourceQuality "1"]
[TimeControl "40/5400+30:1800+30"]

{[%evp 15,63,50,82,72,145,69,77,76,90,88,90,88,91,-104,35,45,46,41,43,33,34,0,19,12,12,11,57,30,65,72,62,39,185,170,152,171,181,187,254,236,268,225,220,117,232,187,529,548,543,529]} 1. e4 c5 2. Nf3 e6 3. d4 cxd4 4. Nxd4 a6 5. c4 Qc7 6. Nc3 Nc6 7. a3 Nf6 8. Be3 Ne5 9. Be2 {And now f4 would win. B41: Sicilian: Kan Variation: 5 c4.} Be7 ({Black should try} 9... Ng6) 10. Rc1 (10. f4 $1 $16 {[%cal Rf4e5]}) 10... O-O (10... Nxc4 $2 11. Bxc4 Qxc4 12. Nd5 $1 {[%mdl 512]} exd5 13. Rxc4 dxc4 14. Nf5 $18) 11. O-O {White is better.} b6 12. f4 Ng6 (12... Nxc4 $2 13. Bxc4 Qxc4 14. Na4 $18) 13. e5 Ne8 {[#]} 14. Nf5 $146 {White has more active pieces.} ({Predecessor:} 14. b4 Qd8 15. Na4 Rb8 16. Bd3 Bb7 17. c5 bxc5 18. Nxc5 Bxc5 19. Rxc5 Rc8 20. Nf3 {½-½ (33) Kaputtze (2356)-El Shaddai (2468) Playchess.com INT 2006}) 14... Bc5 (14... exf5 $17 15. Nd5 Bc5 $1 16. Nxc7 Bxe3+ 17. Kh1 Nxc7) 15. b4 Bxe3+ 16. Nxe3 d6 17. exd6 Nxd6 18. f5 (18. Bf3 $5 {[%cal Rf3a8]} Rb8 19. Qd4 $14) 18... Nxf5 19. Nxf5 {Hoping for Qd6.} exf5 20. Nd5 $36 {[%mdl 2048] White fights for an advantage.} Qd6 (20... Qd8 $11) 21. Bf3 {[%cal Od5f6]} (21. Qd4 $5 {[%cal Rd4b6]}) 21... Rb8 22. Re1 {[%cal Od5e7] Prevents Re8. aiming for Ne7+!} Ne5 23. c5 $1 Nxf3+ (23... bxc5 $14 24. bxc5 Qe6) 24. Qxf3 $18 bxc5 25. bxc5 {[%cal Bb4c5,Bc5c6,Bc6c7][%mdl 32]} Qh6 26. c6 {[%mdl 1024] White has strong compensation.} Kh8 {[#]} (26... Be6 $142 27. Ne7+ Kh8 28. Nxf5 Qf6) 27. c7 $1 Rb2 28. Ne7 Qb6+ 29. Qe3 (29. Kh1 $18 h6 30. Nxc8 (30. Nxf5 Bb7 $14) 30... Rxc8 31. Qxf5) 29... Qxe3+ (29... Qb7 $16 {is a better defense.} 30. Qf3 g5 31. Qxb7 Rxb7) 30. Rxe3 g6 $2 (30... Bb7 {is tougher.}) 31. Nxc8 Rxc8 {[#]} 32. Rd3 $1 {Weighted Error Value: White=0.31/Black=0.54} 1-0

[Event "Kezmarok Chess Open 2022"]
[Site "Kezmarok"]
[Date "2022.09.29"]
[Round "7.13"]
[White "Fizer, Marek"]
[Black "Straka, Simon"]
[Result "1/2-1/2"]
[ECO "C43"]
[WhiteElo "1963"]
[BlackElo "1732"]
[Annotator "TA"]
[PlyCount "87"]
[EventDate "2022.09.24"]
[EventType "swiss"]
[EventCountry "SVK"]
[SourceTitle "playchess.com"]
[Source "ChessBase"]
[SourceQuality "1"]
[TimeControl "40/5400+30:1800+30"]

{[%evp 17,87,20,36,29,53,38,43,12,32,18,24,0,36,4,95,122,100,99,114,43,46,49,72,91,136,26,50,27,46,0,0,0,0,-65,-50,-77,-62,-89,-77,-79,17,15,11,17,16,14,14,16,67,64,126,131,120,62,62,27,9,0,0,0,0,0,0,0,0,0,8,0,0,0,0,0]} 1. e4 {[%emt 0:00:03]} e5 {[%emt 0:00:21]} 2. Nf3 {[%emt 0:00:07]} Nf6 {[%emt 0:00:24]} 3. d4 {[%emt 0:00:07]} Nxe4 {[%emt 0:00:19]} 4. Bd3 {[%emt 0:00:08]} d5 {[%emt 0:00:25]} 5. Nxe5 {[%emt 0:00:07]} Bd6 {[%emt 0:00:29]} 6. O-O {[%emt 0:00:32]} O-O {[%emt 0:00:17]} 7. c4 {[%emt 0:00:44]} c6 {[%emt 0:00:43]} 8. Nc3 {[%emt 0:02:55]} Nxc3 {[%emt 0:10:49]} 9. bxc3 {[%emt 0:00:07]} Nd7 {[%emt 0:06:29]} 10. f4 {[%emt 0:09:26] C43: Petroff Defence: 3 d4.} ({Don't play} 10. Qh5 g6 11. Qe2 Re8 $15) 10... dxc4 {[%emt 0:30:33]} 11. Nxc4 {[%emt 0:05:00]} Be7 {[%emt 0:09:40] [#]} 12. Qc2 $146 {[%emt 0:02:49] White is slightly better.} ({Predecessor:} 12. Rb1 Nf6 13. Ne5 c5 14. Bc4 Qc7 15. Qf3 Rb8 16. Ba3 Bf5 17. Rbe1 Bd6 18. g4 {1-0 (25) Horchman,J-Dijon,J France 1997}) 12... h6 {[%emt 0:02:28]} 13. Kh1 {[%emt 0:11:23]} c5 {[%emt 0:03:47]} 14. Bb2 {[%emt 0:08:28]} b6 {[%emt 0:07:28]} 15. Rad1 {[%emt 0:05:00]} Qc7 {[%emt 0:07:15] [#]} (15... Nf6 $1 $11) 16. d5 $1 $16 {[%emt 0:03:49][%cal Bd4d5,Bd5d6][%mdl 32] Strongly threatening d6!} Bf6 {[%emt 0:03:18]} 17. d6 {[%emt 0:01:46]} Qd8 {[%emt 0:00:11]} 18. Be4 {[%emt 0:01:26] White has more active pieces. The black rooks are badly placed.} (18. Ne3 $16) 18... Rb8 $14 {[%emt 0:00:20]} 19. Ne3 {[%emt 0:00:37]} Ba6 20. Rfe1 {[%emt 0:01:10]} Bb7 {[%emt 0:09:46]} 21. Nd5 {[%emt 0:03:51]} (21. Bxb7 $16 Rxb7 22. Qe4) 21... Bxd5 {[%emt 0:01:25]} 22. Bxd5 {[%emt 0:00:28] aiming for g4.} b5 {[%emt 0:01:13]} 23. Bc6 {[%emt 0:06:24] This bishop pair is nice.} (23. Bc1 $14) 23... Rb6 $11 {[%emt 0:02:46]} 24. Bf3 {[%emt 0:02:37]} Qb8 {[%emt 0:01:28]} 25. Bg4 {[%emt 0:04:00]} (25. Qd3 $11) 25... Rd8 $15 {[%emt 0:00:26]} 26. Qd2 {[%emt 0:02:15]} b4 {[%emt 0:00:33]} 27. cxb4 {[%emt 0:00:44] [#] Hoping for Bxd7.} Bxb2 {[%emt 0:00:22]} 28. Qxb2 {[%emt 0:00:13]} Rxd6 {[%emt 0:00:20]} (28... Nf6 $17 29. Bf3 Rbxd6 30. Rxd6 Rxd6) 29. Rxd6 $11 {[%emt 0:01:00]} Qxd6 {[%emt 0:00:03]} 30. Qc2 {[%emt 0:01:30] With the idea Rd1.} Nf6 {[%emt 0:00:54]} 31. bxc5 {[%emt 0:02:36]} Qxf4 {[%emt 0:00:29]} 32. Bf3 {[%emt 0:00:15]} Qb4 {[%emt 0:00:42]} (32... Re8 $11 33. Rd1 Re3) 33. Rb1 $14 {[%emt 0:06:30]} Qd2 {[%emt 0:00:39]} (33... Re8 $14 34. Qc1 Qa5) 34. Qxd2 $16 {[%emt 0:03:00]} Rxd2 {[%emt 0:00:05][%mdl 4096] Endgame KRB-KRN} 35. Rc1 {[%emt 0:00:04]} ({White should play} 35. c6 $16 Rc2 36. h3) 35... Rd7 $14 {[%emt 0:00:39]} 36. h3 {[%emt 0:01:52]} Rc7 {[%emt 0:00:38]} 37. Kh2 {[%emt 0:00:58] The position is equal.} Nd7 {[%emt 0:00:18]} 38. c6 {[%emt 0:01:00]} Ne5 {[%emt 0:00:45]} 39. Be4 {[%emt 0:00:39]} Kf8 {[%emt 0:00:11]} 40. Kg3 {[%emt 0:00:43]} Ke7 {[%emt 0:00:21]} 41. Kf4 {[%emt 0:30:42]} f6 {[%emt 0:05:30]} 42. g4 {[%emt 0:00:00]} Ke6 {[%emt 0:10:03]} 43. Ke3 {[%emt 0:00:00]} Kd6 {[%emt 0:02:25][%cal Re5c6]} 44. Kf4 {Weighted Error Value: White=0.20 (precise) /Black=0.16 (very precise)} 1/2-1/2